Cogmind - Beta 13 @@@ ROGUE MODE // 2024.04.08 @ 12:14:30 Player: Gimcond Result: Destroyed by S-10 Pest with Light Assault Rifle Performance ------------- Evolutions (1) 500 Regions Visited (4) 800 Robots Destroyed (26) 130 Value Destroyed (773) 773 Prototype IDs (2) 40 Alien Tech Used (0) 0 Bonus (-13) -13 TOTAL SCORE: 2230 Bonus ------- Friendly Fire -13 Cogmind --------- Core Integrity 0/400 Matter 122/300 Energy 100/100 System Corruption 0% Temperature Cool (0) Movement Core (200) Ox3 Location -9/Storage Parts ------- > --- POWER (1) -------- (None) > --- PROPULSION (4) --- (None) > --- UTILITY (2) ------ Medium Storage Unit > --- WEAPON (2) ------- (None) > --- INVENTORY (10) --- Improved Ion Engine Improved Ion Engine Hover Unit Hover Unit Improved Hover Unit Improved Hover Unit Improved Flight Unit Improved Flight Unit Hardened Light Armor Plating Peak State ------------ > --- POWER ------------ Improved Ion Engine > --- PROPULSION ------- Light Treads Improved Treads Improved Hover Unit Improved Hover Unit > --- UTILITY ---------- Huge Storage Unit Hardened Light Armor Plating > --- WEAPON ----------- Particle Gun Grenade Launcher > --- INVENTORY -------- Light Ion Engine Improved Ion Engine Light Treads Light Treads Aluminum Leg Aluminum Leg Improved Hover Unit Improved Hover Unit Improved Hover Unit Improved Hover Unit Small Storage Unit Weight Redist. System Seismic Detector Targeting Computer ECM Suite Core Shielding Light Armor Plating Hardened Light Armor Plating Particle Cannon Assault Rifle Grenade Launcher Mining Claw [Rating: 18] Favorites ----------- Power Improved Ion Engine Engine Improved Ion Engine Propulsion Light Treads Treads Light Treads Hover Unit Improved Hover Unit Utility Huge Storage Unit Device Seismic Detector Storage Huge Storage Unit Processor Targeting Computer Protection Hardened Light Armor Plating Weapon Grenade Launcher Energy Gun Particle Gun Ballistic Gun Assault Rifle Launcher Grenade Launcher Slashing Weapon Mining Claw Build | -11 -10 -10 -9 -9 ------- Run | Yrd Mat Min Mat Sto Slots Evolved 2 | . . . 2 . Power . | . . . . . Propulsion 2 | . . . 2 . Utility . | . . . . . Weapon . | . . . . . Parts Attached 35 | 7 1 4 6 17 Power 6 | 1 . 1 1 3 Engine 6 | 1 . 1 1 3 Core . | . . . . . Reactor . | . . . . . Propulsion 12 | 2 . . 3 7 Treads 8 | 2 . . 3 3 Leg . | . . . . . Wheel . | . . . . . Hover 4 | . . . . 4 Flight . | . . . . . Utility 8 | 2 . 2 1 3 Device 1 | 1 . . . . Storage 3 | 1 . 1 . 1 Processor 1 | . . . . 1 Hackware . | . . . . . Protection 3 | . . 1 1 1 Artifact . | . . . . . Weapon 9 | 2 1 1 1 4 Energy Gun 1 | . . . 1 . Energy Cannon . | . . . . . Ballistic Gun 3 | 2 . . . 1 Ballistic Cannon . | . . . . . Launcher 4 | . 1 1 . 2 Special Weapon . | . . . . . Impact Weapon . | . . . . . Slashing Weapon 1 | . . . . 1 Piercing Weapon . | . . . . . Special Melee Weapon . | . . . . . Unidentified Prototypes . | . . . . . Parts Lost 13 | . . 3 . 10 Power 2 | . . 1 . 1 Propulsion 4 | . . . . 4 Utility 2 | . . 1 . 1 Weapon 5 | . . 1 . 4 Highest Loss Streak 8 | . . 3 . 8 To Critical Strikes . | . . . . . Average Slot Usage (%) 97 | . 100 98 100 93 Engine 11 | . 14 12 11 10 Treads 32 | . 28 28 44 23 Hover 5 | . . . . 16 Device 2 | . 14 1 . . Storage 11 | . 14 14 11 10 Processor 1 | . . . . 3 Protection 8 | . . 11 11 7 Energy Gun 7 | . . . 9 10 Ballistic Gun 5 | . 19 14 1 . Launcher 10 | . 8 14 11 9 Naked Turns . | . . . . . Heaviest Build 98 | 14 16 95 98 98 Greatest Support 83 | 40 40 40 83 83 Greatest Overweight (x) 5 | . . 2 1 5 Average Overweight (x) . | . . . 1 . Largest Inventory Capacity 25 | 8 8 25 25 25 Average Capacity 17 | 7 8 9 25 19 Most Carried 23 | 5 8 9 17 23 Average Carried 10 | 2 5 7 11 13 Final Capacity 25 | 8 8 25 25 25 Final Carried 17 | 4 8 9 17 17 Class Distribution -------------------- 100% | Mutant Dominant Class ---------------- Mutant | -10/Materials Mutant | -10/Mines Mutant | -9/Materials Mutant | -9/Storage Resources | -11 -10 -10 -9 -9 ----------- Run | Yrd Mat Min Mat Sto Matter Collected 823 | 216 81 199 180 147 Remotely . | . . . . . Salvage Created 670 | 91 119 32 228 200 Parts 54 | 5 13 2 19 15 Haulers Intercepted 1 | . . . 1 . Recyclers Shooed . | . . . . . Parts Field Recycled . | . . . . . Retrieved Matter . | . . . . . Parts Self-Destructed . | . . . . . Prevented . | . . . . . Kills | -11 -10 -10 -9 -9 ------- Run | Yrd Mat Min Mat Sto Combat Hostiles Destroyed 17 | . 3 2 5 7 Guns 7 | . . . 3 4 AOE 10 | . 3 2 2 3 Classes Destroyed 10 | 2 2 2 3 1 Worker 2 | . . 1 . 1 Builder 1 | . . . 1 . Tunneler 1 | 1 . . . . Hauler 1 | . . . 1 . Recycler 1 | 1 . . . . Watcher 3 | . 1 . 1 1 Swarmer 1 | . . . . 1 Grunt 8 | . 3 1 2 2 Sentry 7 | . . . 3 4 Demolisher 1 | . . 1 . . Best Kill Streak 7 | 1 4 2 3 7 Combat Bots Only 6 | . 3 1 2 6 Max Kills in Single Turn 2 | 1 2 1 2 2 Gunslinging . | . . . . . Exploded 2 | . 2 1 1 1 Melee . | . . . . . Uniques/NPCs Destroyed . | . . . . . Combat | -11 -10 -10 -9 -9 -------- Run | Yrd Mat Min Mat Sto Hostile Shots Fired 165 | . 11 8 37 109 Missed 42 | . 3 3 10 26 Damage Taken 1910 | . 107 452 409 942 Core 554 | . 5 143 29 377 Absorbed by Shields . | . . . . . Regen/Repaired (Parts) 56 | . . . . 56 Core Remaining (%) 70 | 100 . 40 . . Volleys Fired 63 | 9 6 10 15 23 Largest 2 | 2 2 2 2 2 Hottest 95 | 40 50 50 95 95 Shots Fired 109 | 18 12 16 28 35 Gun 67 | 18 7 10 15 17 Cannon . | . . . . . Launcher 42 | . 5 6 13 18 Special . | . . . . . Kinetic 38 | 18 7 10 . 3 Thermal 29 | . . . 15 14 Explosive 42 | . 5 6 13 18 Electromagnetic . | . . . . . Robot Hit Streak 6 | 2 3 4 6 6 Robot Miss Streak 2 | 1 2 2 2 2 Penetration Max . | . . . . . Secondary Targets . | . . . . . Shots Hit Robots 55 | 10 7 4 12 22 Core Hits 55 | 3 10 4 16 22 Critical Kills . | . . . . . Critical Parts Destroyed . | . . . . . Critical Strikes 1 | . . . . 1 Burn 1 | . . . . 1 Melee Attacks . | . . . . . Impact . | . . . . . Slashing . | . . . . . Piercing . | . . . . . Sneak Attacks . | . . . . . Combat Hostiles . | . . . . . Follow-up Attacks . | . . . . . Damage Inflicted 1849 | 114 331 194 427 783 Guns 532 | 114 33 62 144 179 Cannons . | . . . . . Explosions 1307 | . 295 132 278 602 Melee . | . . . . . Ramming 10 | . 3 . 5 2 Kinetic 245 | 114 33 62 . 36 Thermal 287 | . . . 144 143 Explosive 1307 | . 295 132 278 602 Electromagnetic . | . . . . . Impact . | . . . . . Slashing . | . . . . . Piercing . | . . . . . Highest Corruption 11 | . . 11 . . Average Corruption 11 | . . 11 . . Corruption Purged . | . . . . . Corruption Blocked . | . . . . . Effects 9 | . . 9 . . Message Errors 3 | . . 3 . . Matter Fused 1 | . . 1 . . Heat Flow Errors 1 | . . 1 . . Energy Discharges 1 | . . 1 . . Data Loss (minor) 1 | . . 1 . . Data Loss (major) 1 | . . 1 . . Alerts 1 | . . 1 . . Overload Shots . | . . . . . Overflow Damage 4 | . 4 . . . Projectiles . | . . . . . Explosions 4 | . 4 . . . Melee . | . . . . . Knockbacks . | . . . . . Impact . | . . . . . Kinetic . | . . . . . Secondary . | . . . . . Self-Inflicted Damage 109 | . 17 54 14 24 Shots 5 | . 1 2 1 1 Rammed 2 | . 1 . . 1 Targets Rammed 3 | . 1 . 1 1 Kicked . | . . . . . Crushed 1 | . . . 1 . Highest Temperature 418 | . 2 109 217 418 Average Temperature 115 | . 2 29 85 172 Received Heat Transfer 510 | . 51 30 183 246 Effects 1 | . . . . 1 Shutdowns 1 | . . . . 1 Siege Activations . | . . . . . Robots Corrupted . | . . . . . Combat Hostiles . | . . . . . Parts Fried . | . . . . . Impact Corruptions . | . . . . . Robots Melted . | . . . . . Combat Hostiles . | . . . . . Parts Melted . | . . . . . Heat Transferred 777 | . . . 370 407 Parts Sabotaged . | . . . . . Parts Stolen . | . . . . . Parts Stripped . | . . . . . Power Chain Reactions . | . . . . . Alert | -11 -10 -10 -9 -9 ------- Run | Yrd Mat Min Mat Sto Peak Influence 300 | 10 200 121 233 300 Initial 78 | . 6 78 46 43 Average 98 | 3 114 102 118 92 Maximum Alert Level 1 | . 1 . 1 1 Low Security (%) 86 | 100 60 100 92 83 Level 1 13 | . 39 . 7 16 Level 2 . | . . . . . Level 3 . | . . . . . Level 4 . | . . . . . Level 5 . | . . . . . High Security . | . . . . . Max Security . | . . . . . Squads Dispatched 8 | . 2 . . 6 Investigation 1 | . . . . 1 Extermination . | . . . . . Reinforcement 4 | . 2 . . 2 Assault . | . . . . . Garrison 3 | . . . . 3 Intercept . | . . . . . Searches Triggered . | . . . . . Construction Impeded . | . . . . . Haulers Reinforced . | . . . . . Active Scanning Responses . | . . . . . Cargo Convoy Interrupts . | . . . . . Stealth | -11 -10 -10 -9 -9 --------- Run | Yrd Mat Min Mat Sto Distress Signals 3 | . 1 . 1 1 Communications Jammed . | . . . . . Distress Signals . | . . . . . Times Spotted 41 | . 11 3 8 19 Peak Tracking Total 6 | . 5 2 2 6 Tactical Retreats 1 | . 1 . . . Traps | -11 -10 -10 -9 -9 ------- Run | Yrd Mat Min Mat Sto Traps Triggered 3 | . . . . 3 Indirectly . | . . . . . Trap Hack Attempts . | . . . . . Triggered . | . . . . . Disarmed . | . . . . . Reprogrammed . | . . . . . Reused . | . . . . . Traps Extracted . | . . . . . Installed . | . . . . . Triggered . | . . . . . Machines | -11 -10 -10 -9 -9 ---------- Run | Yrd Mat Min Mat Sto Machines Disabled 4 | . 3 . . 1 Max in Single Turn 2 | . 2 . . 1 Machines Repaired . | . . . . . Machines Dismantled . | . . . . . Machines Sabotaged . | . . . . . Overloaded Fab Kills . | . . . . . Hacking | -11 -10 -10 -9 -9 --------- Run | Yrd Mat Min Mat Sto Machines Accessed 6 | . 1 . 1 4 Terminals 5 | . 1 . 1 3 Fabricators . | . . . . . Repair Stations 1 | . . . . 1 Recycling Units . | . . . . . Scanalyzers . | . . . . . Garrison Access . | . . . . . Total Hacks 17 | . 1 . 2 14 Successful 12 | . 1 . 2 9 Failed 5 | . . . . 5 Catastrophic 1 | . . . . 1 Database Lockouts . | . . . . . Manual 4 | . 1 . 1 2 Terminals 11 | . 1 . 2 8 Fabricators . | . . . . . Repair Stations 6 | . . . . 6 Recycling Units . | . . . . . Scanalyzers . | . . . . . Garrison Access . | . . . . . Terminal Hacks 6 | . . . 1 5 Record 1 | . . . . 1 Part Schematic 1 | . . . . 1 Prototype ID Bank 1 | . . . . 1 Open Door 1 | . . . . 1 Branch Access Points 1 | . . . 1 . Alert Level 1 | . . . . 1 Fabricator Hacks . | . . . . . Repair Station Hacks 2 | . . . . 2 Scan Component 1 | . . . . 1 Repair 1 | . . . . 1 Recycling Unit Hacks . | . . . . . Scanalyzer . | . . . . . Garrison Access Hacks . | . . . . . Unauthorized Hacks 4 | . 1 . 1 2 Terminals 4 | . 1 . 1 2 Botnet 4 | . 1 . 1 2 Fabricators . | . . . . . Repair Stations . | . . . . . Recycling Units . | . . . . . Scanalyzers . | . . . . . Garrison Access . | . . . . . Data Cores Recovered . | . . . . . Used . | . . . . . Hacking Detections 2 | . . . . 2 Full Trace Events 2 | . . . . 2 Feedback Events . | . . . . . Feedback Blocked . | . . . . . Robot Schematics Acquired . | . . . . . Robots Built . | . . . . . Authchips . | . . . . . Time . | . . . . . Total Robot Build Rating . | . . . . . Part Schematics Acquired 1 | . . . . 1 Parts Built . | . . . . . Authchips . | . . . . . Time . | . . . . . Total Part Build Rating . | . . . . . Parts Repaired 1 | . . . . 1 Time 26 | . . . . 26 Parts Recycled . | . . . . . Recycled Matter . | . . . . . Retrieved Matter . | . . . . . Retrieved Components . | . . . . . Parts Scanalyzed . | . . . . . Part Schematics Acquired . | . . . . . Parts Damaged . | . . . . . Bothacking | -11 -10 -10 -9 -9 ------------ Run | Yrd Mat Min Mat Sto Used RIF Installer . | . . . . . Robots Hacked . | . . . . . Non-combat . | . . . . . Combat . | . . . . . Robot Hacks Applied . | . . . . . Relay Couplers Released . | . . . . . Fabnet Peak Effective % . | . . . . . Robots Rewired . | . . . . . Allies Hacked . | . . . . . Hacks Repelled . | . . . . . Allies | -11 -10 -10 -9 -9 -------- Run | Yrd Mat Min Mat Sto Total Allies . | . . . . . Largest Group . | . . . . . Highest-Rated Group . | . . . . . Highest-Rated Ally . | . . . . . Total Orders . | . . . . . Ally Attacks . | . . . . . Total Damage . | . . . . . Kills . | . . . . . Allies Corrupted . | . . . . . Allies Melted . | . . . . . Intel | -11 -10 -10 -9 -9 ------- Run | Yrd Mat Min Mat Sto Robot Analysis Total . | . . . . . Derelict Logs Recovered . | . . . . . Drone Launches . | . . . . . Drone Recoveries . | . . . . . Exploration | -11 -10 -10 -9 -9 ------------- Run | Yrd Mat Min Mat Sto Turns Passed 1918 | 150 259 267 661 581 Spaces Moved 967 | 77 147 135 250 358 Core 31 | 17 . . . 14 Treads 712 | 60 147 135 250 120 Legs . | . . . . . Wheels . | . . . . . Hover 224 | . . . . 224 Flight . | . . . . . Fastest Speed 48 | 50 160 160 240 48 Average Speed 170 | 135 160 171 240 132 Slowest Speed 320 | 160 160 320 240 320 Overloaded Moves . | . . . . . Propulsion Burnouts . | . . . . . Robots Hopped . | . . . . . Cave-ins Triggered 1 | . . 1 . . Exploration Rate (%) 24 | 5 28 17 20 54 Regions Visited 4 Branch Regions 2 Pre-discovered Areas . | . . . . . Known Exits Taken 1 | . . . 1 . Unknown Exits Taken 3 | 1 1 1 . . Scrap Searched 1 | . . 1 . . Spaces Dug . | . . . . . Terrain Destroyed 194 | . 18 32 79 65 Melee . | . . . . . Projectile . | . . . . . AOE 194 | . 18 32 79 65 Terrain Rammed . | . . . . . Walls Destroyed . | . . . . . Machines Disabled . | . . . . . Actions | -11 -10 -10 -9 -9 --------- Run | Yrd Mat Min Mat Sto Total 1130 | 107 158 156 281 428 Wait . | . . . . . Move 963 | 76 146 134 249 358 Hop . | . . . . . Pick Up 55 | 13 4 6 10 22 Fast Attach . | . . . . . Attach 21 | 7 . 3 2 9 Detach . | . . . . . Swap 14 | . 1 1 4 8 Drop 11 | 2 . 2 . 7 Fire 63 | 9 6 10 15 23 Melee . | . . . . . Ram . | . . . . . Kick . | . . . . . Crush 3 | . 1 . 1 1 Escape Stasis . | . . . . . Rewire . | . . . . . Trap . | . . . . . Miscellaneous . | . . . . . Route ------- -11/Scrapyard -10/Materials -10/Mines -9/Materials (discovered 3 exits: Min / *Sto x2) -9/Storage History --------- Turn | Location | Event 5 | -11/Scrapyard | Discovered new exit (range 15) 151 | -11/Scrapyard | Entered Materials 302 | -10/Materials | Build established: Mutant 388 | -10/Materials | Discovered new exit (range 11) 410 | -10/Materials | Entered Mines 411 | -10/Mines | Assembled infested the area 416 | -10/Mines | Assisted by a Guerilla fighting off Assembled 444 | -10/Mines | Crushed by falling debris 444 | -10/Mines | System corruption reached 10% 455 | -10/Mines | Joined a pair of Derelicts in attacking an 0b10 outpost 475 | -10/Mines | Lost 3 parts (1p1u1w) 549 | -10/Mines | Core integrity fell below 50% 601 | -10/Mines | Discovered new exit (range 8) 677 | -10/Mines | Entered Materials 677 | -9/Materials | Evolved 2 slots: Propulsion x2 747 | -9/Materials | Identified exit to Mines 747 | -9/Materials | Identified exit to Storage 1338 | -9/Materials | Entered Storage 1424 | -9/Storage | Repaired Grenade Launcher 1900 | -9/Storage | Core integrity fell below 50% 1911 | -9/Storage | Core integrity fell below 20% 1919 | -9/Storage | Destroyed by S-10 Pest with Light Assault Rifle Last Messages --------------- reinforcements to Terminal S011. 01861_ K-01 Serf collects debris. 01862_ Grenade Launcher destroyed. 01863_ Acquired 16 matter. 01864_ K-01 Serf collects debris. 01864_ Acquired Hover Unit. 01867_ K-01 Serf cleans the Transport Mainframe. 01878_ S-10 Pest destroyed. 01879_ Lgt. Ion Engine destroyed. 01883_ Imp. Hover Unit destroyed. 01889_ Hvy. Assault Rifle destroyed. 01896_ Targeting Computer destroyed. 01897_ G-34 Mercenary destroyed. 01900_ R-06 Scavenger collects Heat Sink. 01903_ Particle Gun destroyed. 01905_ K-01 Serf collects debris. 01905_ R-06 Scavenger collects Aluminum Leg. 01907_ K-01 Serf collects debris. 01908_ R-06 Scavenger collects Flight Unit. Map ----- +----------------------------------------------------+ | | | | | | | | | | | | | | | | | ??????????????????????????????????????????######## | | ??????????????????????????????#??????????? | | ????????????????????????????"T"####????# ? | | ??????????????????????????# ?#??# """ """ | | ??????????????????????????# #### """ """ | | ????????????????????????### """ """ """# """ """ | | ????????????????????????#"" """ """ R"# | | ????????????????????????#"T """ """ """# | | ????????????????????????#"" ########## # | | ??????????????????????????# # + ! | | ??????????????????????????# # # ! | | ??????????????????????#########+##### # | | ??????????????????????# [% # # | | ??????????????????????# /%"""" # | | ??????????????###?????# # """" # | | ??????????????# ### ss########### """" # | | ??????????????# a #?????????# """" # | | ??????????????# Y @#?????????# ### | | ??????????????# w #?????????##"T"####### | | ??????????????# ### #??????????#"""#???## | | ??????????????## ???# #??????????#####??## | | ???????????????# ????# #????????????????## | | ???????????????# ?????# #??????????####### | | ???????????????#??????# +??????????# """ | | ??????????????????????# #??????????# """ ==! | | ??????????????????????# #??????????# ^"" #= | | ??????????????????????# ???????????# """ !!# | | ??????????????????????# ?????????# # ^ # | | ??????????????????????# ?????????# # ^ ^ + | | ??????????????????????# ?????????# # | | ??????????????????????# ?????????# + | | ??????????????????????# ?????????# # ## #####+# | | ???????????????????????###?????????# | | ???????????????????????????????????# #### | | ???????????????????????????????????###???# ! / | | ?????????????????????????????????????????# ! | | ?????????????????????????????????????????# | | ?????????????????????????????????????????#######/# | | ??????????????????????????????????????????????# | | ??????????????????????????????????????????????# | | ?????????????????????????????????????????###### | | ?????????????????????????????????????????# # | +----------------------------------------------------+ Best States ------------- Heat Dissipation 28 Energy Generation 12 Energy Capacity 265 Matter Stores 300 Matter Capacity 300 Sight Range 16 Terrain Scan Density 10 Armor Coverage 150 Evasion (%) 55 Targeting Accuracy 5 Recoil Reduction 4 Item Schematics ----------------- Arm. Treads | -9/Storage | Hacked Robot Schematics ------------------ None Fabricated ------------ Nothing Alien Tech Used ----------------- None Achievements -------------- Unlikely Earthworm Challenges ------------ None Game ------ Seed LauncherThunderProcessor Manual? 0 Play Time 00:20:36 Cumulative 6.7 hours Start 2024.04.08 @ 11:41:16 End 2024.04.08 @ 12:14:30 Sessions 3 Manual Loads 0 Difficulty Rogue Special Mode None Game No. 18 Rogue 18 Adventurer 0 Explorer 0 Win Type - Total 0 Types 0/0/0/0/0/0/0/0/0 Lore% 14 Gallery% 12 Achievement% 15 Wizard Run 0 Options --------- Layout 1 ASCII 1 Keyboard 0 Movement Arrows Keybinds 0 Fullscreen 1 Font 24/Smallcaps Map View 50x35 Zoom Use 0% Tactical HUD 1 Map Filters NONE Filters NONE Steam 1 RUN: 8ca0855d-4f8d-4965-b7b5-b6df0509bc35